bitfinex/quotes_ETHUSD_20211001
["timestamp","ask_amount","ask_price","bid_price","bid_amount"]
[1633125930815,0.18015738,3318.5,3318.4,3.6005498]
[1633125931217,0.18015738,3318.5,3318.4,5.81445807]
[1633125931415,0.18015738,3318.5,3318.4,3.6005498]
[1633125932415,0.00975788,3318.5,3318.4,3.6005498]
[1633125932617,0.00975788,3318.5,3318.4,3.71457741]
[1633125932815,0.00975788,3318.5,3318.4,3.67857741]
[1633125935015,0.18015752,3318.5,3318.4,3.5645498]
[1633125936518,0.18015752,3318.5,3318.4,2.2705498]
[1633125936719,0.18015752,3318.5,3318.4,3.5645498]
[1633125937920,0.00975788,3318.5,3318.4,3.5645498]
[1633125938120,0.00975788,3318.5,3318.4,3.67857741]
[1633125938322,0.00975788,3318.5,3318.4,5.89218225]
[1633125939320,0.00975788,3318.5,3318.4,4.56175679]
[1633125939523,0.00975788,3318.5,3318.4,2.20315195]
[1633125940522,0.00975788,3318.5,3318.4,2.08912434]
[1633125940725,0.18015766,3318.5,3318.4,2.08912434]
[1633125943524,0.00975788,3318.5,3318.4,2.20315195]
[1633125945924,0.00975788,3318.5,3318.4,2.08912434]
[1633125946124,0.1801578,3318.5,3318.4,2.08912434]
[1633125948923,0.00975788,3318.5,3318.4,2.08912434]
[1633125949122,0.00975788,3318.5,3318.4,2.20315195]
[1633125951524,0.18015794,3318.5,3318.4,2.08912434]
[1633125953126,0.060538,3319.5,3318.7,4.359719]
[1633125953329,0.003,3319.5,3318.8,3.61200604]
[1633125953526,0.003,3319.5,3318.9,0.58249536]
[1633125953727,0.003,3319.5,3318.9,1.84199536]
[1633125953925,0.003,3319.5,3319.0,0.58231694]
[1633125954126,0.003,3319.5,3319.3,0.99873765]
[1633125954325,0.003,3319.5,3319.4,0.58224585]
[1633125954528,0.003,3319.5,3319.4,0.198902]
[1633125957126,3.0129263,3319.2,3318.5,0.003]
[1633125957326,0.99298789,3319.0,3318.8,0.58404571]
[1633125957989,3.01293,3319.3,3318.8,0.58404571]
[1633125958589,4.51914,3319.1,3318.8,0.58404571]
[1633125958989,0.95236696,3319.1,3318.4,0.003]
[1633125959188,0.95236696,3319.1,3318.8,0.58339056]
[1633125959992,0.95236696,3319.1,3318.9,0.19904852]
[1633125961190,4.5191,3319.0,3318.9,0.19904852]
[1633125962192,7.5316,3319.3,3318.9,0.19904852]
[1633125962391,3.01293,3319.3,3318.9,0.19904852]
[1633125962593,0.0853203,3319.0,3318.5,0.003]
[1633125962792,0.0853203,3319.0,3318.8,0.58300187]
[1633125963590,3.01236,3318.9,3318.8,0.58300187]
[1633125964592,3.01236,3318.9,3318.8,2.08300187]
[1633125965591,3.01236,3318.9,3318.8,2.28209923]
[1633125966794,2.91236,3318.9,3318.8,3.09265299]
[1633125967097,0.003,3319.5,3319.4,6.18621654]
[1633125967295,0.003,3319.5,3319.4,7.35272305]
[1633125967595,0.003,3319.5,3319.4,10.81185261]
[1633125967796,0.003,3319.5,3319.4,9.21925647]
[1633125967995,0.0884524,3319.5,3319.4,9.21925647]
[1633125968195,0.0884524,3319.5,3319.4,10.51325647]
[1633125968394,0.0884524,3319.5,3319.4,15.02988647]
[1633125968601,0.0884524,3319.5,3319.4,16.14408775]
[1633125968794,0.0884524,3319.5,3319.4,13.80094637]
[1633125970997,0.003,3319.5,3319.4,13.80094637]
[1633125971601,0.003,3319.5,3319.4,12.04256688]
[1633125971801,0.003,3319.5,3319.4,5.06766585]
[1633125972001,0.003,3319.5,3319.4,2.46756457]
[1633125972400,0.003,3319.5,3319.4,6.63800979]
[1633125972600,0.003,3319.5,3319.4,11.29997979]
[1633125972799,0.259,3321.5,3320.5,1.29422678]
[1633125973003,0.259,3321.5,3320.5,4.19232391]
[1633125973004,3.01094,3321.2,3320.5,4.19232391]
[1633125973201,3.01094,3321.2,3320.5,1.29422678]
[1633125973400,0.75069753,3321.1,3320.5,2.02497728]
[1633125973605,1.26716529,3320.6,3320.5,1.29422678]
[1633125974601,1.26716529,3320.6,3320.5,2.06269337]
[1633125975003,1.26716529,3320.6,3320.5,3.41879337]
[1633125976703,0.71435431,3321.0,3320.9,7.18779219]
[1633125976704,0.003,3321.0,3320.9,7.18779219]
[1633125976908,0.006,3321.6,3321.4,2.49637749]
[1633125977105,0.006,3321.6,3321.4,7.28987394]
[1633125977305,0.006,3321.6,3321.4,7.86685404]
[1633125977505,0.006,3321.6,3321.5,4.21639445]
[1633125977705,0.006,3321.6,3321.5,5.68679862]
[1633125977904,0.006,3321.6,3321.5,6.98079862]
[1633125978103,0.006,3321.6,3321.5,7.54722461]
[1633125978505,0.001,3322.3,3321.5,4.12314411]
[1633125978705,0.001,3322.3,3321.9,3.00863]
[1633125978911,0.001,3322.3,3322.1,4.51306]
[1633125979107,0.001,3322.3,3322.2,0.145]
[1633125979907,0.001,3322.3,3322.2,2.95964314]
[1633125980308,0.001,3322.3,3322.2,4.25364314]
[1633125980707,0.001,3322.3,3322.2,0.145]
[1633125982106,0.001,3322.3,3322.2,0.34299124]
[1633125982307,0.001,3322.3,3322.2,4.29825133]
[1633125982508,0.009,3322.5,3322.2,5.84465133]
[1633125982708,0.009,3322.5,3322.3,2.74659989]
[1633125983109,0.009,3322.5,3322.2,1.88939124]
[1633125983308,0.009,3322.5,3322.2,0.34299124]
[1633125984510,0.009,3322.5,3322.2,0.145]
[1633125984709,0.08612391,3322.3,3322.2,0.145]
[1633125984910,0.08612391,3322.3,3322.2,4.65852]
[1633125985308,0.08612391,3322.3,3322.2,0.145]
[1633125985509,0.08612391,3322.3,3322.2,1.645]
[1633125985709,0.08612391,3322.3,3322.2,1.431]
[1633125986910,0.95539644,3322.3,3322.2,1.431]
[1633125987509,0.86927253,3322.3,3322.2,1.62899124]
[1633125988909,0.006,3322.4,3322.2,1.62899124]
[1633125989512,4.75,3322.3,3321.5,0.003]
[1633125989813,0.02548317,3321.8,3321.5,0.003]
[1633125990411,0.18502387,3322.2,3321.5,0.003]
[1633125990412,3.01051,3322.0,3321.5,0.003]
[1633125991411,0.81313281,3321.7,3321.5,0.003]
[1633125992216,4.337,3320.9,3319.7,3.01031]
[1633125992417,3.52065,3320.6,3319.5,0.003]
[1633125992614,3.52065,3320.6,3319.8,0.006]
[1633125992615,0.07065,3320.6,3319.8,0.006]
[1633125992813,0.07065,3320.6,3319.3,0.71283449]
[1633125993014,3.01196,3320.3,3319.9,0.09964601]
[1633125993414,3.01196,3320.3,3320.0,0.006]
[1633125993815,3.01196,3320.3,3320.1,0.74222513]
[1633125994013,0.07065,3320.6,3320.0,0.006]
[1633125994214,3.01151,3320.4,3320.2,0.003]
[1633125994612,3.01151,3320.4,3320.0,0.006]
[1633125995014,3.85692295,3320.4,3320.0,0.006]
[1633125995615,0.1846166,3320.3,3320.0,0.006]
[1633125996015,0.1846166,3320.3,3319.9,0.006]
[1633125996412,0.1522022,3320.3,3319.9,0.006]
[1633125996614,0.1522022,3320.3,3320.0,1.5]
[1633125997018,0.1522022,3320.3,3320.1,0.003]
[1633125997814,0.1522022,3320.3,3320.0,1.406]
[1633125998614,8.37475295,3320.4,3320.1,0.11586947]
[1633125998813,3.85692295,3320.4,3320.1,0.11586947]
[1633125999020,3.01151,3320.4,3320.1,0.11586947]
[1633125999217,0.057538,3321.2,3321.0,19.91286691]
[1633125999415,0.1282,3322.5,3322.0,0.76756409]
[1633125999619,0.1282,3322.5,3322.1,3.96921583]
[1633125999620,0.1144,3322.2,3322.1,3.96921583]
[1633125999814,0.006,3322.4,3322.1,2.008638]
[1633126000218,0.006,3322.4,3322.1,6.45983]
[1633126000816,0.006,3322.4,3322.3,4.519]
[1633126001017,0.006,3322.4,3322.3,4.7]
[1633126001216,0.006,3322.4,3322.3,9.21326]
[1633126001418,2.43939594,3322.3,3322.0,0.76756409]
[1633126001619,0.02559214,3322.1,3322.0,0.76756409]
[1633126001819,0.02559214,3322.1,3322.0,0.94856409]
[1633126002619,5.44983594,3322.3,3322.0,0.94856409]
[1633126003423,2.43939594,3322.3,3322.0,0.76756409]
[1633126003620,2.43939594,3322.3,3322.1,2.11386614]
[1633126003821,2.43939594,3322.3,3322.1,2.13936614]
[1633126004018,2.43939594,3322.3,3322.2,0.11521907]
[1633126006619,2.60829686,3322.3,3322.2,1.5]
[1633126007620,2.60829686,3322.3,3322.2,1.43329664]
[1633126008022,2.63419072,3322.3,3322.2,1.43329664]
[1633126008221,2.60829686,3322.3,3322.2,1.43329664]
[1633126009621,2.43939594,3322.3,3322.2,1.54849946]
[1633126011621,0.006,3322.4,3322.3,1.67183185]
[1633126012025,4.57836882,3322.2,3321.9,0.8517863]
[1633126012222,0.181,3322.1,3321.9,0.8517863]
[1633126012625,0.181,3322.1,3321.3,0.003]
[1633126012626,4.8,3321.9,3321.3,0.003]
[1633126012821,0.181,3321.8,3321.3,0.003]
[1633126013026,0.181,3321.8,3320.7,0.79541295]
[1633126013027,6.49428012,3321.2,3320.7,0.79541295]
[1633126013224,4.67505122,3320.8,3320.7,0.79541295]
[1633126013421,0.20605122,3320.8,3320.7,0.79541295]
[1633126014020,1.01332335,3320.8,3320.7,0.79541295]
[1633126014222,4.69805,3320.8,3320.7,0.79541295]
[1633126014421,3.26137,3321.1,3320.7,0.79541295]
[1633126015226,3.26137,3321.1,3320.8,0.11564174]
[1633126015822,4.51609,3321.0,3320.8,0.11564174]
[1633126016025,6.49428012,3321.2,3321.1,4.51609]
[1633126016228,0.003,3322.0,3321.2,5.36563254]
[1633126016424,0.003,3322.0,3321.9,1.60220808]
[1633126016624,0.003,3322.0,3321.9,6.03388179]
[1633126017025,0.003,3322.0,3321.9,4.54000808]
[1633126017621,0.17182934,3322.0,3321.9,4.54000808]
[1633126017827,0.17182934,3322.0,3321.9,4.35900808]
[1633126019025,0.17182934,3322.0,3321.9,2.89200808]
[1633126019223,0.17182934,3322.0,3321.9,1.60220808]
[1633126020439,0.93719095,3322.0,3321.9,1.60220808]
[1633126020625,0.003,3322.0,3321.9,1.60220808]
[1633126020823,0.003,3322.0,3321.9,1.71750841]
[1633126022236,1.53326269,3321.2,3321.0,0.95473963]
[1633126022430,2.60324405,3321.1,3321.0,0.95473963]
[1633126022732,3.91494467,3320.7,3319.9,0.006]
[1633126022934,6.54559423,3320.7,3319.9,0.006]
[1633126023128,6.54559423,3320.7,3319.3,0.009]
[1633126023129,0.031166,3320.2,3319.3,0.009]
[1633126023329,0.031166,3320.2,3319.0,0.003]
[1633126023330,2.01274905,3319.4,3319.1,0.009]
[1633126023531,7.28344928,3319.3,3318.1,0.015]
[1633126023728,3.0127481,3319.3,3318.2,0.586408]
[1633126023928,3.0127481,3319.3,3318.6,2.46]
[1633126024129,0.145,3319.5,3319.0,0.88798329]
[1633126024327,0.031166,3320.2,3319.0,0.88798329]
[1633126024328,0.145,3319.9,3319.0,0.88798329]
[1633126024529,0.145,3319.9,3319.1,0.009]
[1633126025533,11.2129,3320.6,3319.2,0.64959632]
[1633126025534,11.14210958,3320.6,3319.2,0.64959632]
[1633126025728,11.14210958,3320.6,3319.3,0.58531125]
[1633126025927,9.64210958,3320.6,3319.3,0.59431125]
[1633126026127,9.64210958,3320.6,3319.4,0.009]
[1633126026328,0.98858061,3319.9,3319.4,0.009]
[1633126026729,3.01189,3320.2,3319.4,0.009]
[1633126027728,4.51817,3320.0,3319.4,0.009]
[1633126027931,0.72283466,3319.8,3319.4,0.009]
[1633126028529,0.2259165,3319.7,3319.4,0.009]
[1633126028931,0.2259165,3319.7,3319.1,0.009]
[1633126029129,0.2259165,3319.7,3319.2,0.5860718]
[1633126029528,0.2259165,3319.7,3319.3,0.009]
[1633126029730,0.2259165,3319.7,3319.4,0.88478501]
[1633126030132,0.2259165,3319.7,3319.5,0.009]
[1633126030930,0.2259165,3319.7,3319.1,2.56944017]
[1633126030931,0.2259165,3319.7,3319.2,0.009]
[1633126031129,0.2259165,3319.7,3319.3,0.58600898]
[1633126031530,0.145,3320.4,3319.4,0.009]
[1633126031731,0.145,3320.4,3319.5,0.58577947]
[1633126031930,0.832189,3320.2,3319.5,1.47160983]
[1633126032130,0.832189,3320.2,3319.6,0.006]
[1633126032531,0.832189,3320.2,3319.5,0.009]
[1633126032931,0.832189,3320.2,3319.6,0.5358136]
[1633126033135,1.15310437,3320.7,3319.9,1.294]
[1633126033343,1.15310437,3320.7,3320.6,1.07382937]
[1633126033537,1.53326269,3321.2,3320.7,2.07593363]
[1633126033733,1.53326269,3321.2,3320.8,2.68365339]
[1633126033934,1.53326269,3321.2,3320.9,1.3339]
[1633126034135,0.22624033,3321.1,3320.9,5.84821]
[1633126034334,0.22624033,3321.1,3320.9,4.51431]
[1633126034538,0.22624033,3321.1,3320.7,0.64973363]
[1633126035332,0.07624033,3321.1,3320.7,0.64973363]
[1633126035533,0.07624033,3321.1,3320.7,5.16511363]
[1633126036335,0.07624033,3321.1,3320.7,0.64973363]
[1633126036936,0.07624033,3321.1,3320.7,2.14973363]
[1633126037136,1.53326269,3321.2,3320.8,0.13297532]
[1633126039001,0.84266332,3321.1,3320.8,0.13297532]
[1633126039400,4.51658,3321.0,3320.8,0.13297532]
[1633126039604,4.51658,3321.0,3320.7,2.14973363]
[1633126040003,2.40738141,3320.6,3320.2,0.003]
[1633126040206,2.40738141,3320.6,3320.0,0.003]
[1633126040207,1.53326269,3320.2,3320.0,0.003]
[1633126040404,1.53326269,3320.2,3319.8,0.003]
[1633126040405,0.145,3320.1,3319.8,0.003]
[1633126040606,2.86090831,3320.1,3319.0,0.009]
[1633126040808,4.66334,3320.1,3318.8,0.009]
[1633126041007,0.99409672,3319.5,3318.8,0.009]
[1633126041207,7.33496383,3320.1,3318.8,0.009]
[1633126041403,0.25,3319.8,3318.9,1.49932722]
[1633126041804,0.25,3319.8,3319.1,4.51727]
[1633126042202,0.25,3319.8,3319.2,0.85766412]
[1633126042404,0.25,3319.8,3319.2,3.86903412]
[1633126042602,0.25,3319.8,3319.3,0.13944714]
[1633126043002,0.25,3319.8,3319.4,0.006]
[1633126043604,4.54500089,3320.2,3319.4,2.52246564]
[1633126043810,1.48326269,3320.2,3319.4,2.52246564]
[1633126044003,1.48326269,3320.2,3319.5,0.006]
[1633126044402,1.48326269,3320.2,3319.5,1.0334]
[1633126044601,1.48326269,3320.2,3319.8,0.78812659]
[1633126045001,1.48326269,3320.2,3319.9,0.003]
[1633126045202,0.15098887,3320.1,3319.9,0.003]
[1633126045802,0.15098887,3320.1,3319.7,0.003]
[1633126046007,0.15098887,3320.1,3319.7,4.51939]
[1633126046205,2.2170811,3320.6,3320.2,1.34935314]
[1633126046410,2.2170811,3320.6,3320.3,2.71637803]
[1633126046606,2.2170811,3320.6,3320.3,0.145]
[1633126046804,2.2170811,3320.6,3320.3,3.17025727]
[1633126047003,2.2170811,3320.6,3320.4,4.57472425]
[1633126047204,2.2170811,3320.6,3320.4,9.23483425]
[1633126047404,2.2170811,3320.6,3320.4,11.46470306]
[1633126047603,2.2170811,3320.6,3320.4,10.35000306]
[1633126047803,2.2170811,3320.6,3320.4,11.61600306]
[1633126048003,2.2170811,3320.6,3320.5,0.20859987]
[1633126048404,2.2170811,3320.6,3320.5,1.50259987]
[1633126049008,2.2170811,3320.6,3320.5,0.20859987]
[1633126049605,2.2170811,3320.6,3320.5,1.50259987]
[1633126050005,2.2170811,3320.6,3320.5,2.22445644]
[1633126050405,2.2170811,3320.6,3320.5,0.20859987]
[1633126050605,2.29274352,3320.6,3320.4,7.67018]
[1633126051609,2.29274352,3320.6,3320.4,7.52518]
[1633126052205,2.29274352,3320.6,3320.4,7.47518]
[1633126053609,2.2170811,3320.6,3320.5,0.20859987]
[1633126055806,2.2170811,3320.6,3320.5,4.72422987]
[1633126056007,2.2170811,3320.6,3320.5,4.51563]
[1633126056206,2.29274366,3320.6,3320.5,4.51563]
[1633126059010,2.2170811,3320.6,3320.5,4.51563]
[1633126059209,2.2170811,3320.6,3320.4,4.07779039]
[1633126059412,2.2170811,3320.6,3320.4,2.96007]
[1633126060210,2.2170811,3320.6,3320.5,4.51599]
[1633126061209,2.2170811,3320.6,3320.4,2.96007]
[1633126061515,0.67705977,3320.2,3320.1,1.11982263]
[1633126061713,5.52955975,3320.2,3320.0,0.003]
[1633126061918,0.145,3320.1,3319.4,0.006]
[1633126062112,0.145,3320.1,3319.0,0.009]
[1633126062311,0.145,3320.1,3319.3,4.51755]
[1633126062715,0.145,3320.1,3319.4,0.006]
[1633126062912,0.25,3320.5,3320.3,6.15294335]
[1633126063114,0.07565071,3320.6,3320.4,2.77576155]
[1633126063315,0.07565071,3320.6,3320.5,1.38122173]
[1633126063515,0.003,3321.5,3321.2,1.0894172]
[1633126063714,0.003,3321.5,3321.4,1.076913]
[1633126063912,0.003,3321.5,3321.4,5.70844251]
[1633126064112,0.003,3321.5,3321.4,4.79106768]
[1633126064314,0.003,3321.5,3321.4,0.73132395]
[1633126064516,0.003,3321.5,3321.4,0.3911325]
[1633126064712,0.003,3321.5,3321.4,4.9045225]
[1633126064913,0.006,3322.4,3321.9,1.52655737]
[1633126065116,0.006,3322.4,3322.0,4.85]
[1633126065315,0.006,3322.4,3322.3,0.071614]
[1633126065513,0.006,3322.4,3322.1,0.145]
[1633126065715,0.006,3322.4,3321.9,1.52655737]
[1633126065918,0.006,3322.4,3322.0,2.62343138]
[1633126066115,0.006,3322.4,3321.9,1.52655737]
[1633126066419,0.006,3322.4,3322.1,1.294]
[1633126066617,0.84912505,3322.4,3322.2,0.73019475]
[1633126066815,0.84912505,3322.4,3322.2,0.145]
[1633126066816,0.006,3322.4,3322.2,0.145]
[1633126067019,0.006,3322.4,3322.3,0.58506778]
[1633126067415,0.006,3322.4,3322.2,0.145]
[1633126067816,0.78710505,3322.3,3321.9,1.52655737]
[1633126068019,0.006,3322.4,3321.9,1.52655737]
[1633126068218,0.006,3323.2,3323.1,1.71239147]
[1633126068424,0.009,3323.5,3323.2,0.91458328]
[1633126068619,0.009,3324.0,3323.9,0.58789277]
[1633126068820,0.009,3324.5,3324.0,4.4]
[1633126069019,0.009,3324.5,3324.2,4.50982]
[1633126069217,0.009,3324.5,3324.3,0.045]
[1633126069418,0.009,3324.5,3324.3,0.145]
[1633126069621,0.009,3324.5,3324.3,1.524079]
[1633126069821,0.009,3324.5,3324.3,1.70489038]
[1633126070818,0.009,3324.5,3324.3,4.31867043]
[1633126071020,0.006,3325.9,3325.1,1.50916321]
[1633126071219,0.006,3325.9,3325.1,3.48496321]
[1633126071621,0.006,3325.9,3325.1,1.50916321]
[1633126071622,0.84326092,3325.2,3325.1,1.50916321]
[1633126071820,1.81961388,3325.2,3325.1,4.00994742]
[1633126072019,0.03068429,3325.4,3325.1,2.7744304]
[1633126072020,0.006,3325.4,3325.1,2.7744304]
[1633126072324,0.006,3325.4,3325.2,0.145]
[1633126072519,0.04496271,3325.3,3325.2,0.145]
[1633126072920,0.8257719,3325.3,3325.2,0.145]
[1633126073119,4.35,3325.2,3324.7,3.00599]
[1633126073320,0.024771,3325.1,3324.5,0.003]
[1633126073518,0.024771,3325.1,3323.9,1.42619572]
[1633126073519,3.95,3325.0,3323.9,1.42619572]
[1633126073723,3.95,3325.0,3323.5,0.003]
[1633126073724,1.57992428,3323.2,3322.5,0.003]
[1633126073921,1.57992428,3323.2,3322.6,0.003]
[1633126073922,2.5,3323.1,3322.6,0.003]
[1633126074120,0.79470995,3323.0,3322.1,0.006]
[1633126074323,0.79470995,3323.0,3321.9,4.5135]
[1633126074522,4.43251572,3323.2,3321.9,4.5135]
[1633126074523,4.43251572,3323.2,3322.3,0.76713369]
[1633126074720,4.43251572,3323.2,3322.1,3.009]
[1633126074925,4.43251572,3323.2,3322.4,0.006]
[1633126075118,4.43251572,3323.2,3322.2,0.006]
[1633126075319,4.43251572,3323.2,3322.5,0.24569372]
[1633126075619,0.87983367,3322.9,3322.6,0.003]
[1633126076521,7.44187572,3323.2,3322.6,0.003]
[1633126077318,7.44187572,3323.2,3322.6,1.503]
[1633126077718,0.8496972,3322.7,3322.6,1.5]
[1633126078121,4.8,3322.6,3322.5,0.003]
[1633126078321,7.37894573,3322.6,3322.5,0.003]
[1633126078521,10.82077,3322.6,3321.6,0.006]
[1633126078722,5.40343608,3322.7,3322.5,0.003]
[1633126079123,0.03832888,3322.7,3322.0,0.76100912]
[1633126079321,0.03832888,3322.7,3321.6,0.009]
[1633126079523,2.99845888,3323.0,3322.1,0.006]
[1633126079721,2.99845888,3323.0,3321.5,2.66810964]
[1633126079920,2.99845888,3323.0,3321.5,0.009]
[1633126080125,2.99845888,3323.0,3321.6,0.009]
[1633126080321,0.87908221,3322.3,3321.6,0.009]
[1633126080523,0.87908221,3322.3,3321.5,3.00971]
[1633126080924,0.87908221,3322.3,3321.7,0.26513439]
[1633126081323,0.87908221,3322.3,3321.8,0.009]
[1633126081528,0.25,3322.5,3321.8,0.009]
[1633126082026,3.00998,3322.4,3321.8,0.009]
[1633126082423,7.52531,3322.4,3321.8,0.009]
[1633126082628,3.0104555,3322.3,3321.8,0.009]
[1633126082823,3.00998,3322.4,3321.8,0.009]
[1633126083027,0.86846546,3322.1,3321.8,0.009]
[1633126083624,4.51569,3322.2,3321.8,0.009]
[1633126083826,0.00175983,3322.3,3321.8,0.009]
[1633126083827,0.01899695,3322.0,3321.8,0.009]
[1633126084025,0.01899695,3322.0,3321.3,0.062332]
[1633126084226,0.01899695,3322.0,3321.4,0.012]
[1633126085425,0.01899695,3322.0,3321.5,3.00969]
[1633126085826,0.01899695,3322.0,3321.6,0.009]
[1633126086430,0.9311164,3322.2,3321.7,0.26518315]
[1633126086828,0.9311164,3322.2,3321.8,0.009]
[1633126087427,0.00175983,3322.3,3321.7,0.12418315]
[1633126088930,0.00175983,3322.3,3321.6,1.5]
[1633126088931,4.4,3322.0,3321.6,1.5]
[1633126089128,0.75582064,3322.1,3321.6,1.5]
[1633126089129,4.77462075,3321.7,3321.6,1.5]
[1633126089329,0.02462075,3321.7,3321.6,1.5]
[1633126089931,0.145,3321.9,3321.6,1.5]
[1633126090130,0.15160064,3322.2,3321.6,1.5]
[1633126090929,1.57472742,3321.7,3321.6,1.5]
[1633126091129,1.00934702,3321.7,3321.6,1.5]
[1633126091729,3.01241983,3322.3,3321.6,1.5]
[1633126091928,3.01241983,3322.3,3321.6,1.63264034]
[1633126092129,4.51601,3322.0,3321.6,1.63264034]
[1633126092730,3.0107811,3322.1,3321.6,1.63264034]
[1633126092731,0.87263414,3321.9,3321.6,1.63264034]
[1633126093531,2.68428447,3321.8,3321.6,1.63264034]
[1633126093730,0.02934449,3321.8,3321.6,1.63264034]
[1633126094331,4.54546449,3321.8,3321.6,1.63264034]
[1633126094635,4.54546449,3321.8,3319.9,5.45078]
[1633126094636,0.93322455,3319.6,3319.4,2.46]
[1633126094837,0.028501,3319.5,3319.4,2.46]
[1633126095031,0.028501,3319.5,3318.6,2.46]
[1633126095232,2.73518973,3319.5,3318.6,2.46]
[1633126095434,2.73518973,3319.5,3318.7,1.37919048]
[1633126095435,0.9974872,3319.4,3318.7,1.37919048]
[1633126095731,0.9974872,3319.4,3318.8,0.54730731]
[1633126097130,0.9974872,3319.4,3318.7,0.8322231]
[1633126097331,0.9974872,3319.4,3318.9,0.06716613]
[1633126098131,0.003,3319.5,3318.9,0.06716613]
[1633126099133,0.82706861,3319.3,3318.9,0.06716613]
[1633126099330,0.003,3319.5,3318.9,0.06716613]
[1633126100134,0.003,3319.5,3318.8,1.5]
[1633126100135,0.22026186,3319.5,3318.8,1.5]
[1633126100331,0.22026186,3319.5,3318.9,0.54705183]
[1633126100537,0.22026186,3319.5,3318.8,1.5]
[1633126102133,0.22026186,3319.5,3319.1,1.294]
[1633126102334,0.22026186,3319.5,3318.9,0.54682692]
[1633126102335,0.22026186,3319.5,3319.3,4.51696]
[1633126102535,0.22026186,3319.5,3319.4,1.99396008]
[1633126102933,0.003,3319.5,3319.4,0.61279598]
[1633126103136,0.003,3319.5,3319.4,1.90679598]
[1633126104131,0.004367,3319.5,3319.4,1.90679598]
[1633126104733,0.907867,3319.5,3319.4,1.90679598]
[1633126105737,1.12518898,3319.5,3319.4,1.83976008]
[1633126106336,1.12518898,3319.5,3319.4,0.54576008]
[1633126106533,1.12518898,3319.5,3319.2,0.86987645]
[1633126106737,1.12518898,3319.5,3318.8,1.5]
[1633126106932,1.12518898,3319.5,3318.9,0.54648634]
[1633126107333,5.64408898,3319.5,3318.8,1.5]
[1633126107733,1.12518898,3319.5,3319.1,1.294]
[1633126107935,1.12518898,3319.5,3319.2,0.69042704]
[1633126108133,1.12518898,3319.5,3319.3,0.69023303]
[1633126108336,0.907867,3319.5,3319.3,0.21205218]
[1633126108533,0.907867,3319.5,3319.4,1.26330665]
[1633126108933,0.907867,3319.5,3319.4,2.55730665]
[1633126109735,0.907867,3319.5,3319.4,0.54506537]
[1633126109933,0.907867,3319.5,3319.4,0.54496466]
[1633126110133,0.907867,3319.5,3319.3,0.06705218]
[1633126110734,0.99374462,3319.4,3319.3,0.06705218]
[1633126110939,0.9035,3319.4,3319.3,0.06705218]
[1633126111133,0.9035,3319.4,3318.8,1.5]
[1633126111734,0.9035,3319.4,3318.9,0.54529059]
[1633126111935,0.9035,3319.4,3319.2,0.84571414]
[1633126112132,0.9035,3319.4,3318.8,1.5]
[1633126112336,0.9035,3319.4,3318.8,6.01815]
[1633126112537,0.9035,3319.4,3319.0,3.01204]
[1633126113734,0.9035,3319.4,3319.1,0.72878895]
[1633126113934,0.9035,3319.4,3319.1,0.79590624]
[1633126114734,0.00132917,3319.3,3319.1,0.79590624]
[1633126115134,0.00132917,3319.3,3319.1,0.06711729]
[1633126116536,0.00132917,3319.3,3318.8,1.5]
[1633126116736,0.21725029,3319.2,3318.8,1.5]
[1633126116937,0.9035,3319.1,3318.8,1.5]
[1633126117136,0.9035,3319.1,3318.9,1.294]
[1633126117337,0.9035,3319.1,3318.8,6.96321]
[1633126117537,0.21725029,3319.2,3319.1,4.8]
[1633126117738,0.003,3320.5,3319.7,0.96794284]
[1633126117941,0.003,3320.5,3319.9,1.476]
[1633126118138,0.003,3320.5,3319.9,4.82489445]
[1633126118337,0.003,3320.5,3320.2,4.51527]
[1633126118540,0.003,3320.5,3320.3,0.145]
[1633126118938,0.003,3320.5,3320.1,3.01018]
[1633126119336,0.003,3320.5,3320.2,0.1753844]
[1633126119742,0.72086054,3320.4,3320.2,0.1753844]
[1633126120638,6.23019404,3320.3,3320.2,0.1753844]
[1633126120839,1.43019404,3320.3,3320.2,0.1753844]
[1633126122039,1.43019404,3320.3,3319.7,0.93622455]
[1633126122238,4.51894,3320.0,3319.7,0.93622455]
[1633126123039,0.91256081,3319.9,3319.7,0.93622455]
[1633126123240,5.43081081,3319.9,3319.7,0.93622455]
[1633126123438,0.93622455,3319.7,3319.4,0.003]
[1633126123641,2.87376583,3319.6,3319.4,0.003]
[1633126123842,0.93622455,3319.7,3319.2,0.003]
[1633126124239,0.82240712,3319.3,3319.2,0.003]
[1633126124441,4.51901,3319.3,3319.2,0.003]
[1633126124641,3.0129,3319.6,3319.3,0.17566104]
[1633126125040,3.0129,3319.6,3319.4,0.003]
[1633126125241,0.00121174,3319.5,3319.4,0.003]
[1633126125447,0.00121174,3319.5,3319.4,2.00701838]
[1633126126041,0.00121174,3319.5,3319.4,0.71301838]
[1633126126842,0.00121174,3319.5,3319.4,2.00701838]
[1633126127041,0.00121174,3319.5,3319.4,3.48481838]
[1633126127243,0.00121174,3319.5,3319.4,2.19081838]
[1633126127442,0.00121174,3319.5,3319.4,0.71301838]
[1633126127641,0.10990913,3319.5,3319.4,1.90991838]
[1633126127840,0.10990913,3319.5,3319.4,0.71301838]
[1633126128045,0.10990913,3319.5,3319.4,3.20181838]
[1633126128453,0.10990913,3319.5,3319.4,3.74683207]
[1633126128643,0.10990913,3319.5,3319.4,1.90781838]
[1633126129246,0.10990913,3319.5,3319.4,3.95300313]
[1633126129442,0.10990913,3319.5,3319.4,5.24700313]
[1633126130042,0.93622455,3319.7,3319.5,3.15]
[1633126130242,0.93622455,3319.7,3319.5,1.85144477]
[1633126130443,0.93622455,3319.7,3319.6,1.294]
[1633126130943,0.93622455,3319.7,3319.6,1.8392544]
[1633126131342,0.93622455,3319.7,3319.6,5.0613944]
[1633126131542,0.93622455,3319.7,3319.6,4.51614]
[1633126132142,0.93622455,3319.7,3319.6,5.06175954]
[1633126132542,0.93622455,3319.7,3319.6,4.51614]